Workbook

Sheet POR
E1: Penalizações | I1: Tempo
A2: CHP (Min.) | B2: Escolas | C2: Ciclos | D2: Alunos | E2: N.º resp. erradas | G2: N.º controlos ñ efetuados | I2: CHC | J2: Total parcial | K2: Total acumulado | L2: Classif
F3: 00:05:00 | H3: 00:10:00
A4: 10:53:00 | B4: EB 2,3 Caniço | C4: 3º | D4: Leandra Sousa | E4: 9 | F4: =E4*$F$3 -> 00:45:00 | G4: 0 | H4: =G4*$H$3 -> 00:00:00 | I4: 0.4631944444 | J4: =I4-A4 -> 0.009722222222 | K4: =J4+F4+H4 -> 0.04097222222
D5: Bruno Santos
A6: 10:53:00 | B6: EB 2,3 Caniço | C6: 2º | D6: José Nóbrega | E6: 7 | F6: =E6*$F$3 -> 00:35:00 | G6: 0 | H6: =G6*$H$3 -> 00:00:00 | I6: 11:07:00 | J6: =I6-A6 -> 0.009722222222 | K6: =J6+F6+H6 -> 0.03402777778
D7: Catarina Rodrigues
A8: 11:10:00 | B8: EBS Lucinda Andrade | C8: 3º | D8: Pedro Medeiros | E8: 4 | F8: 00:20:00 | G8: 0 | H8: 00:00:00 | I8: 11:35:00 | J8: 0.01736111111 | K8: 0.03125
D9: João Catanho
A10: 11:10:00 | B10: EBS Lucinda Andrade | C10: 2º | D10: Diogo Pacheco | E10: 7 | F10: 00:35:00 | G10: 0 | H10: =G10*$H$3 -> 00:00:00 | I10: 11:25:00 | J10: =I10-A10 -> 0.01041666667 | K10: 0.03472222222
D11: José Guilherme Moreira
A12: 00:00:00 | B12: EB 2,3 Caniçal | C12: 3º | E12: 0 | F12: 00:00:00 | G12: 0 | H12: 00:00:00 | I12: 00:00:00 | J12: 0 | K12: 0
A14: 00:00:00 | B14: EB 2,3 Caniçal | C14: 2º | E14: 0 | F14: 00:00:00 | G14: 0 | H14: 00:00:00 | I14: 00:00:00 | J14: 0 | K14: 0
A16: 10:58:00 | B16: Porto Santo | C16: 3º | D16: Iúri Ferreira | E16: 3 | F16: 00:15:00 | G16: 0 | H16: 00:00:00 | I16: 11:11:00 | J16: 0.009027777778 | K16: 0.01944444444 | L16: 1º
D17: Rui Miranda
A18: 10:43:00 | B18: Porto Santo | C18: 2º | D18: Pedro Santiago | E18: 7 | F18: 00:35:00 | G18: 0 | H18: 00:00:00 | I18: 10:54:00 | J18: 0.007638888889 | K18: 0.03194444444 | L18: 1º
D19: Jorge Mimoso
A20: 00:00:00 | B20: EB2,3 Torre | C20: 3º | E20: 0 | F20: 00:00:00 | G20: 0 | H20: 00:00:00 | I20: 00:00:00 | J20: 0 | K20: 0
A22: 00:00:00 | B22: EB 2,3 Torre | C22: 2º | E22: 0 | F22: 00:00:00 | G22: 0 | H22: 00:00:00 | I22: 00:00:00 | J22: 0 | K22: 0
A24: 00:00:00 | B24: EB 2,3 Dr. Eduardo B. Castro | C24: 3º | E24: 0 | F24: 00:00:00 | G24: 0 | H24: 00:00:00 | I24: 00:00:00 | J24: 0 | K24: 0
A26: 00:00:00 | B26: EB 2,3 Dr. Eduardo B. Castro | C26: 2º | E26: 0 | F26: 00:00:00 | G26: 0 | H26: 00:00:00 | I26: 00:00:00 | J26: 0 | K26: 0
A28: 10:56:00 | B28: EB 2,3Santo António | C28: 3º | D28: Zuliana Cardoso | E28: 4 | F28: 00:20:00 | G28: 0 | H28: 00:00:00 | I28: 11:05:00 | J28: 0.00625 | K28: 0.02013888889 | L28: 2º
D29: Cristina Ferreira
A30: 10:58:00 | B30: EB 2,3Santo António | C30: 2º | D30: João Torres | E30: 8 | F30: 00:40:00 | G30: 0 | H30: 00:00:00 | I30: 11:12:00 | J30: 0.009722222222 | K30: 0.0375
D31: Décio Ribeiro
A32: 10:43:00 | B32: EBS Ponta Sol | C32: 3º | D32: André Ferreira | E32: 6 | F32: 00:30:00 | G32: 0 | H32: 00:00:00 | I32: 10:53:00 | J32: 0.006944444444 | K32: 0.02777777778
D33: João Melro
A34: 10:42:00 | B34: EBS Ponta Sol | C34: 2º | D34: Cristiano Carpinteiro | E34: 7 | F34: 00:35:00 | G34: 0 | H34: =G34*F36 -> 00:00:00 | I34: 10:56:00 | J34: 0.009722222222 | K34: 0.03402777778
D35: João Sousa
A36: 10:42:00 | B36: EBS Santa Cruz | C36: 3º | D36: Ana Maria Silva | E36: 5 | F36: 00:25:00 | G36: 0 | H36: 00:00:00 | I36: 10:51:00 | J36: 0.00625 | K36: 0.02361111111
D37: Natacha Espírito Santo
A38: 10:46:00 | B38: EBS Santa Cruz | C38: 2º | D38: Artur Vieira | E38: 9 | F38: 00:45:00 | G38: 0 | H38: 00:00:00 | I38: 11:00:00 | J38: 0.009722222222 | K38: 0.04097222222
D39: Rodrigo Quito
A40: 11:09:00 | B40: EBS Dr. Ângelo A. da Silva | C40: 3º | D40: Nicole Franco | E40: 7 | F40: 00:35:00 | G40: 0 | H40: 00:00:00 | I40: 11:23:00 | J40: 0.009722222222 | K40: 0.03402777778
D41: Alexandra Silva
A42: 10:45:00 | B42: EBS Dr. Ângelo A. da Silva | C42: 2º | D42: Ana Freches | E42: 7 | F42: 00:35:00 | G42: 0 | H42: 00:00:00 | I42: 11:01:00 | J42: 0.01111111111 | K42: 0.03541666667
D43: Marta Vasconcelos
A44: 10:45:00 | B44: EBS Dr. Luís M.S. Dantas | C44: 3º | D44: Dário Pestana | E44: 5 | F44: 00:25:00 | G44: 0 | H44: 00:00:00 | I44: 11:00:00 | J44: 0.01041666667 | K44: 0.02777777778
D45: João Velosa
A46: 10:56:00 | B46: EBS Dr. Luís M.S. Dantas | C46: 2º | D46: Afonso Correia | E46: 7 | F46: 00:35:00 | G46: 0 | H46: 00:00:00 | I46: 11:22:00 | J46: 0.01805555556 | K46: 0.04236111111
D47: Francisco Ornelas
A48: 00:00:00 | B48: EBS Bispo D. Manuel F. Cabral | C48: 3º | E48: 0 | F48: 00:00:00 | G48: 0 | H48: 00:00:00 | I48: 00:00:00 | J48: 0 | K48: 0
A50: 10:41:00 | B50: EBS Bispo D. Manuel F. Cabral | C50: 2º | D50: Raquel Santos | E50: 9 | F50: 00:45:00 | G50: 0 | H50: 00:00:00 | I50: 10:57:00 | J50: 0.01111111111 | K50: 0.04236111111
D51: Maria Martins
A52: 00:00:00 | B52: EB 2,3 dos Louros | C52: 3º | E52: 0 | F52: 00:00:00 | G52: 0 | H52: 00:00:00 | I52: 00:00:00 | J52: =I52-A52 -> 0 | K52: 0
A54: 00:00:00 | B54: EB 2,3 dos Louros | C54: 2º | E54: 0 | F54: 00:00:00 | G54: 0 | H54: 00:00:00 | I54: 00:00:00 | J54: 0 | K54: 0
A56: 10:51:00 | B56: EBS Calheta | C56: 3º | D56: João Santos | E56: 6 | F56: 00:30:00 | G56: 0 | H56: 00:00:00 | I56: 11:08:00 | J56: 0.01180555556 | K56: 0.03263888889
D57: Bruno Freitas
A58: 10:51:00 | B58: EBS Calheta | C58: 2º | D58: Luna Afonso | E58: 6 | F58: 00:30:00 | G58: 0 | H58: 00:00:00 | I58: 11:15:00 | J58: 0.01666666667 | K58: 0.0375
D59: Marie Mendes
A60: 11:00:00 | B60: EB 2,3 Prof Francisco M. S. Barreto | C60: 3º | D60: Fernando Andrade | E60: 5 | F60: 00:25:00 | G60: 0 | H60: 00:00:00 | I60: 11:20:00 | J60: 0.01388888889 | K60: 0.03125
D61: Miguel Teixeira
A62: 11:01:00 | B62: EB 2,3 Prof Francisco M. S. Barreto | C62: 2º | D62: Gonçalo Gomes | E62: 7 | F62: 00:35:00 | G62: 0 | H62: 00:00:00 | I62: 11:15:00 | J62: 0.009722222222 | K62: 0.03402777778
D63: Octávio Nascimento
A65: 00:00:00 | B65: EB 2,3 Cónego JJG Andrade | C65: 3º | E65: 0 | F65: 00:00:00 | G65: 0 | H65: 00:00:00 | I65: 00:00:00 | J65: 0 | K65: 0
A67: 00:00:00 | B67: EB 2,3 Cónego JJG Andrade | C67: 2º | E67: 0 | F67: 00:00:00 | G67: 0 | H67: 00:00:00 | I67: 00:00:00 | J67: 0 | K67: 0
A69: 10:52:00 | B69: EB 1, 2,3 Bartolomeu Perestrelo | C69: 3º | D69: Ana Gonçalves | E69: 6 | F69: =E69*$F$3 -> 00:30:00 | G69: 0 | H69: 00:00:00 | I69: 11:16:00 | J69: 0.01666666667 | K69: 0.0375
D70: Irene Jesus
A71: 10:55:00 | B71: EB 1, 2,3 Bartolomeu Perestrelo | C71: 2º | D71: Clara Henriques | E71: 7 | F71: 00:35:00 | G71: 0 | H71: =G71*$H$3 -> 00:00:00 | I71: 11:07:00 | J71: =I71-A71 -> 0.008333333333 | K71: =J71+F71+H71 -> 0.03263888889 | L71: 2º
D72: Joana Fagundes
A73: 10:55:00 | B73: EB 2,3 Cardeal Dom Teodósio Gouveia | C73: 3º | D73: Paulo Andrade | E73: 6 | F73: 00:30:00 | G73: 0 | H73: 00:00:00 | I73: 11:28:00 | J73: 0.02291666667 | K73: 0.04375
D74: Érica Nascimento
A75: 10:50:00 | B75: EB 2,3 Cardeal Dom Teodósio Gouveia | C75: 2º | D75: Rodrigo Freitas | E75: 9 | F75: 00:45:00 | G75: 1 | H75: 00:10:00 | I75: 11:03:00 | J75: 0.009027777778 | K75: 0.04722222222
D76: Tiago Pacheco
A77: 10:48:00 | B77: EB 2,3 Estreito Câ. Lobos | C77: 3º | E77: 7 | F77: 00:35:00 | G77: 0 | H77: 00:00:00 | I77: 11:00:00 | J77: 0.008333333333 | K77: 0.03263888889
D78: Ronaldo Gouveia
A79: 10:54:00 | B79: EB 2,3 Estreito Câ. Lobos | C79: 2º | D79: Eleonor Pereira | E79: 8 | F79: 00:40:00 | G79: 0 | H79: 00:00:00 | I79: 11:08:00 | J79: 0.009722222222 | K79: 0.0375
D80: Fabiana Freitas
A81: 10:50:00 | B81: EBS Gonçalves Zarco | C81: 3º | D81: João Olim | E81: 5 | F81: 00:25:00 | G81: 0 | H81: 00:00:00 | I81: 10:58:00 | J81: 0.005555555556 | K81: 0.02291666667 | L81: 3º
D82: Guilherme Vieira
A83: 10:44:00 | B83: EBS Gonçalves Zarco | C83: 2º | D83: Tatiana Sousa | E83: 6 | F83: 00:30:00 | G83: 1 | H83: 00:10:00 | I83: 10:57:00 | J83: =I83-A83 -> 0.009027777778 | K83: 0.03680555556
D84: Daniela Costa
A85: 10:54:00 | B85: Colégio Infante D. Henrique | C85: 3º | D85: Afonso Gouveia | E85: 6 | F85: 00:30:00 | G85: 0 | H85: 00:00:00 | I85: 11:06:00 | J85: =I85-A85 -> 0.008333333333 | K85: 0.02916666667
D86: Júlio Sousa
A87: 10:57:00 | B87: Colégio Infante D. Henrique | C87: 2º | D87: Miguel Teixeira | E87: 8 | F87: 00:40:00 | G87: 0 | H87: 00:00:00 | I87: 11:06:00 | J87: 0.00625 | K87: 0.03402777778
D88: André Pereira
A89: 10:47:00 | B89: EB 1, 2, 3 Curral das Freiras | C89: 3º | D89: Rosa Camacho | E89: 7 | F89: 00:35:00 | G89: 0 | H89: 00:00:00 | I89: 11:25:00 | J89: 0.02638888889 | K89: 0.05069444444
D90: Liliana Jesus
A91: 10:49:00 | B91: EB 1, 2, 3 Curral das Freiras | C91: 2º | D91: Sabrina Figueira | E91: 9 | F91: 00:45:00 | G91: 0 | H91: 00:00:00 | I91: 11:07:00 | J91: 0.0125 | K91: 0.04375
D92: Sol Sousa
A93: 10:49:00 | B93: EB 2,3 Dr. Horácio Bento Gouveia | C93: 3º | D93: Margarida Betencourt | E93: 5 | F93: 00:25:00 | G93: 0 | H93: 00:00:00 | I93: 11:06:00 | J93: =I93-A93 -> 0.01180555556 | K93: 0.02916666667
D94: Joana Silva
A95: 10:52:00 | B95: EB 2,3 Dr. Horácio Bento Gouveia | C95: 2º | D95: Clara Menezes | E95: 8 | F95: 00:40:00 | G95: 0 | H95: 00:00:00 | I95: 11:13:00 | J95: 0.01458333333 | K95: 0.04236111111
D96: Beatriz Dória
A98: 10:44:00 | B98: EBS Padre Manuel Álvares Pereira | C98: 3º | D98: Gonçalo | E98: 6 | F98: 00:30:00 | G98: 0 | H98: 00:00:00 | I98: 10:55:00 | J98: 0.007638888889 | K98: 0.02847222222
D99: Artur
A100: 10:46:00 | B100: EBS Padre Manuel Álvares Pereira | C100: 2º | D100: Enzo | E100: 9 | F100: 00:45:00 | G100: 0 | H100: 00:00:00 | I100: 11:02:00 | J100: 0.01111111111 | K100: 0.04236111111
D101: Maria João
A102: 10:57:00 | B102: EB 1,2,3 Porto Cruz | C102: 3º | D102: Diogo Rocha | E102: 3 | F102: 00:15:00 | G102: 0 | H102: 00:00:00 | I102: 11:27:00 | J102: 0.02083333333 | K102: 0.03125
D103: Pedro Carvalho
A104: 10:59:00 | B104: EB 1,2,3 Porto Cruz | C104: 2º | D104: Amaro Vieira | E104: 10 | F104: 00:50:00 | G104: 0 | H104: 00:00:00 | I104: 11:15:00 | J104: 0.01111111111 | K104: 0.04583333333
D105: José Pedro
A106: 10:59:00 | B106: EBS Machico | C106: 3º | D106: Manuel Vieira | E106: 6 | F106: 00:30:00 | G106: 0 | H106: 00:00:00 | I106: 11:07:00 | J106: 0.005555555556 | K106: 0.02638888889
D107: Tiago Nóbrega
A108: 11:00:00 | B108: EBS Machico | C108: 2º | D108: Ché Phipson | E108: 8 | F108: 00:40:00 | G108: 0 | H108: 00:00:00 | I108: 11:07:00 | J108: 0.004861111111 | K108: 0.03263888889 | L108: 3º
D109: Rúben Mendonça
A110: 10:46:00 | B110: EB 2,3 Alfredo N. Ferreira Júnior | C110: 3º | D110: Eduardo Camacho | E110: 5 | F110: 00:25:00 | G110: 0 | H110: 00:00:00 | I110: 11:01:00 | J110: 0.01041666667 | K110: 0.02777777778
D111: Nuno Camacho
A112: 10:48:00 | B112: EB 2,3 Alfredo N. Ferreira Júnior | C112: 2º | D112: Leonardo Gonçalves | E112: 8 | F112: =E112*$F$3 -> 00:40:00 | G112: 0 | H112: 00:00:00 | I112: 11:07:00 | J112: 0.01319444444 | K112: 0.04097222222
D113: Maurílio Martins
A114: 10:41:00 | B114: Externato Apresentação de Maria | C114: 3º | D114: Eda Barros | E114: 6 | F114: =E114*$F$3 -> 00:30:00 | G114: 0 | H114: =G114*$H$3 -> 00:00:00 | I114: 10:59:00 | J114: =I114-A114 -> 0.0125 | K114: =J114+F114+H114 -> 0.03333333333
D115: Catarina Fernandes
A116: 00:00:00 | B116: Externato Apresentação de Maria | C116: 2º | E116: 0 | F116: =E116*$F$3 -> 00:00:00 | G116: 0 | H116: =G116*$H$3 -> 00:00:00 | I116: 00:00:00 | J116: =I116-A116 -> 0 | K116: =J116+F116+H116 -> 0
A118: CHP | E118: Respostas | G118: Postos | I118: CHC

Sheet alunos

Sheet Folha3
